fUST/lending_fUST_20250216
["ID","MTS","AMOUNT","RATE_DAILY","PERIOD"]
[353188883,1739639433179,-500.0,8.859e-05,2]
[353188885,1739639433189,-500.0,8.859e-05,2]
[353188887,1739639433199,-500.0,8.859e-05,2]
[353188889,1739639433208,-502.3868348,8.859e-05,2]
[353188891,1739639433218,-500.0,8.859e-05,2]
[353188893,1739639433228,-500.0,8.859e-05,2]
[353188895,1739639433238,-181.70454279,8.859e-05,2]
[353189402,1739639438327,-500.0,8.858e-05,2]
[353189404,1739639438336,-500.0,8.858e-05,2]
[353189406,1739639438346,-318.29545721,8.859e-05,2]
[353189408,1739639438355,-500.0,8.859e-05,2]
[353189410,1739639438365,-500.0,8.859e-05,2]
[353189412,1739639438379,-500.0,8.859e-05,2]
[353189414,1739639438388,-500.0,8.859e-05,2]
[353189416,1739639438397,-500.0,8.859e-05,2]
[353189418,1739639438407,-921.65,8.859e-05,2]
[353189420,1739639438417,-500.0,8.859e-05,2]
[353189422,1739639438427,-500.0,8.859e-05,2]
[353189424,1739639438437,-500.0,8.859e-05,2]
[353189426,1739639438447,-500.0,8.859e-05,2]
[353189428,1739639438456,-500.0,8.859e-05,2]
[353189430,1739639438466,-503.07666868,8.859e-05,2]
[353189433,1739639438476,-500.0,8.859e-05,2]
[353189435,1739639438485,-626.29,8.859e-05,2]
[353189437,1739639438495,-500.0,8.859e-05,2]
[353189439,1739639438504,-501.45276273,8.859e-05,2]
[353189441,1739639438514,-500.0,8.859e-05,2]
[353189443,1739639438524,-500.0,8.859e-05,2]
[353189445,1739639438533,-1388.61,8.859e-05,2]
[353189447,1739639438543,-667.41,8.859e-05,2]
[353189449,1739639438552,-500.0,8.859e-05,2]
[353189451,1739639438562,-500.0,8.859e-05,2]
[353189453,1739639438571,-500.0,8.859e-05,2]
[353189455,1739639438580,-500.0,8.859e-05,2]
[353189457,1739639438589,-500.0,8.859e-05,2]
[353189459,1739639438599,-500.0,8.859e-05,2]
[353189461,1739639438608,-500.0,8.859e-05,2]
[353189463,1739639438619,-500.0,8.859e-05,2]
[353189465,1739639438628,-500.0,8.859e-05,2]
[353189466,1739639438638,-500.0,8.859e-05,2]
[353189467,1739639438647,-500.0,8.859e-05,2]
[353189468,1739639438658,-509.81209698,8.859e-05,2]
[353189469,1739639438667,-956.25,8.859e-05,2]
[353189470,1739639438677,-500.0,8.859e-05,2]
[353189471,1739639438686,-796.7,8.859e-05,2]
[353189472,1739639438696,-500.0,8.859e-05,2]
[353189473,1739639438705,-500.0,8.859e-05,2]
[353189474,1739639438715,-599.68732734,8.859e-05,2]
[353189475,1739639438724,-500.0,8.859e-05,2]
[353189476,1739639438735,-500.0,8.859e-05,2]
[353189477,1739639438745,-500.0,8.859e-05,2]
[353189478,1739639438754,-500.0,8.859e-05,2]
[353189479,1739639438763,-500.0,8.859e-05,2]
[353189480,1739639438775,-500.0,8.859e-05,2]
[353189481,1739639438784,-500.0,8.859e-05,2]
[353189482,1739639438793,-314.56575968,8.859e-05,2]
[353189484,1739639438802,-500.0,8.859e-05,2]
[353189486,1739639438812,-500.0,8.859e-05,2]
[353189488,1739639438822,-500.0,8.859e-05,2]
[353189490,1739639438832,-500.0,8.859e-05,2]
[353189492,1739639438841,-766.92,8.859e-05,2]
[353189494,1739639438852,-500.0,8.859e-05,2]
[353189496,1739639438862,-500.0,8.859e-05,2]
[353189498,1739639438871,-332.31195325,8.859e-05,2]
[353189500,1739639438881,-500.0,8.859e-05,2]
[353189502,1739639438891,-500.0,8.859e-05,2]
[353189504,1739639438900,-500.0,8.859e-05,2]
[353189507,1739639438911,-500.0,8.859e-05,2]
[353189508,1739639438921,-500.0,8.859e-05,2]
[353189511,1739639438930,-500.0,8.859e-05,2]
[353189513,1739639438940,-500.0,8.859e-05,2]
[353189515,1739639438950,-500.0,8.859e-05,2]
[353189517,1739639438960,-500.0,8.859e-05,2]
[353189519,1739639438970,-500.0,8.859e-05,2]
[353189521,1739639438979,-500.0,8.859e-05,2]
[353189523,1739639438988,-500.0,8.859e-05,2]
[353189536,1739639439100,-500.0,8.859e-05,2]
[353189538,1739639439110,-500.0,8.859e-05,2]
[353189540,1739639439119,-500.0,8.859e-05,2]
[353189542,1739639439128,-573.74,8.859e-05,2]
[353189544,1739639439138,-500.0,8.859e-05,2]
[353189546,1739639439147,-500.0,8.859e-05,2]
[353189548,1739639439157,-500.0,8.859e-05,2]
[353189550,1739639439166,-1243.85,8.859e-05,2]
[353189552,1739639439175,-500.0,8.859e-05,2]
[353189554,1739639439185,-500.0,8.859e-05,2]
[353189556,1739639439195,-500.0,8.859e-05,2]
[353189558,1739639439204,-500.0,8.859e-05,2]
[353189560,1739639439213,-500.0,8.859e-05,2]
[353189562,1739639439222,-501.01976374,8.859e-05,2]
[353189564,1739639439232,-500.0,8.859e-05,2]
[353189566,1739639439244,-500.0,8.859e-05,2]
[353189568,1739639439254,-500.0,8.859e-05,2]
[353189570,1739639439263,-500.0,8.859e-05,2]
[353189572,1739639439272,-500.0,8.859e-05,2]
[353189574,1739639439282,-673.03,8.859e-05,2]
[353189576,1739639439291,-500.0,8.859e-05,2]
[353189578,1739639439300,-500.0,8.859e-05,2]
[353189580,1739639439309,-500.0,8.859e-05,2]
[353189582,1739639439319,-500.0,8.859e-05,2]
[353189584,1739639439328,-500.0,8.859e-05,2]
[353189586,1739639439339,-500.0,8.859e-05,2]
[353189588,1739639439349,-500.0,8.859e-05,2]
[353189590,1739639439358,-500.0,8.859e-05,2]
[353189592,1739639439367,-500.0,8.859e-05,2]
[353189594,1739639439377,-500.0,8.859e-05,2]
[353189596,1739639439386,-3947.65,8.859e-05,2]
[353189598,1739639439396,-714.74,8.859e-05,2]
[353189600,1739639439405,-501.71580436,8.859e-05,2]
[353189602,1739639439416,-500.0,8.859e-05,2]
[353189604,1739639439425,-1386.74,8.859e-05,2]
[353189606,1739639439434,-500.0,8.859e-05,2]
[353189608,1739639439444,-500.0,8.859e-05,2]
[353189610,1739639439453,-500.0,8.859e-05,2]
[353189612,1739639439463,-2228.16,8.859e-05,2]
[353189614,1739639439473,-1441.66,8.859e-05,2]
[353189616,1739639439482,-500.0,8.859e-05,2]
[353189618,1739639439491,-500.0,8.859e-05,2]
[353189621,1739639439501,-1842.94,8.859e-05,2]
[353189623,1739639439511,-500.0,8.859e-05,2]
[353189625,1739639439521,-500.0,8.859e-05,2]
[353189627,1739639439530,-500.0,8.859e-05,2]
[353189629,1739639439540,-500.0,8.859e-05,2]
[353189631,1739639439550,-500.0,8.859e-05,2]
[353189633,1739639439559,-935.98,8.859e-05,2]
[353189635,1739639439570,-500.0,8.859e-05,2]
[353189637,1739639439579,-500.0,8.859e-05,2]
[353189639,1739639439588,-3372.90868093,8.859e-05,2]
[353189642,1739639439604,-2808.74097871,8.859e-05,2]
[353189645,1739639439623,-13127.16320944,8.859e-05,2]
[353192717,1739640451589,5000.0,8.219e-05,2]
[353192764,1739640632681,-300.0,8.854e-05,2]
[353192767,1739640632691,-2423.23,8.855e-05,2]
[353192769,1739640632700,-807.83,8.855e-05,2]
[353192770,1739640632710,-616.6,8.855e-05,2]
[353192772,1739640632719,-500.0,8.855e-05,2]
[353192774,1739640632729,-500.0,8.855e-05,2]
[353192776,1739640632739,-500.0,8.855e-05,2]
[353192778,1739640632748,-500.0,8.855e-05,2]
[353192780,1739640632758,-500.0,8.856e-05,2]
[353192782,1739640632767,-500.0,8.856e-05,2]
[353192783,1739640632777,-966.42,8.856e-05,2]
[353192785,1739640632787,-812.66,8.856e-05,2]
[353192787,1739640632796,-500.0,8.856e-05,2]
[353192789,1739640632806,-500.0,8.856e-05,2]
[353192791,1739640632816,-831.37,8.856e-05,2]
[353192793,1739640632825,-776.85,8.856e-05,2]
[353192795,1739640632834,-500.0,8.856e-05,2]
[353192809,1739640632977,-437.45916209,8.856e-05,2]
[353192810,1739640632998,-62.54083791,8.856e-05,2]
[353192811,1739640633008,-500.0,8.856e-05,2]
[353192812,1739640633019,-1390.97,8.856e-05,2]
[353192813,1739640633031,-825.35,8.856e-05,2]
[353192814,1739640633041,-500.0,8.856e-05,2]
[353192815,1739640633052,-500.0,8.856e-05,2]
[353192816,1739640633062,-500.0,8.856e-05,2]
[353192817,1739640633072,-500.0,8.856e-05,2]
[353192818,1739640633083,-883.25,8.856e-05,2]
[353192819,1739640633093,-500.0,8.856e-05,2]
[353192820,1739640633104,-916.4,8.856e-05,2]
[353192821,1739640633115,-500.0,8.856e-05,2]
[353192822,1739640633126,-763.5,8.856e-05,2]
[353192823,1739640633137,-1330.75,8.856e-05,2]
[353192824,1739640633149,-500.0,8.856e-05,2]
[353192825,1739640633158,-500.0,8.856e-05,2]
[353192826,1739640633168,-500.0,8.856e-05,2]
[353192827,1739640633179,-505.78158092,8.856e-05,2]
[353192828,1739640633188,-763.7,8.856e-05,2]
[353192829,1739640633197,-500.0,8.856e-05,2]
[353192830,1739640633207,-500.0,8.856e-05,2]
[353192831,1739640633217,-500.0,8.856e-05,2]
[353192832,1739640633228,-500.0,8.856e-05,2]
[353192833,1739640633238,-492.78307981,8.856e-05,2]
[353192834,1739640633248,-570.67,8.856e-05,2]
[353192835,1739640633257,-1232.11,8.856e-05,2]
[353192836,1739640633266,-500.0,8.856e-05,2]
[353192837,1739640633276,-500.0,8.856e-05,2]
[353192838,1739640633286,-500.0,8.856e-05,2]
[353192839,1739640633296,-500.0,8.856e-05,2]
[353192840,1739640633305,-500.0,8.856e-05,2]
[353192841,1739640633315,-500.0,8.856e-05,2]
[353192842,1739640633326,-500.0,8.856e-05,2]
[353192843,1739640633336,-482.28550868,8.856e-05,2]
[353192844,1739640633357,-1545.38,8.855e-05,2]
[353192845,1739640633366,-17.71449132,8.856e-05,2]
[353192846,1739640633376,-707.47,8.856e-05,2]
[353192847,1739640633386,-1242.39,8.856e-05,2]
[353192848,1739640633396,-500.0,8.856e-05,2]
[353192849,1739640633405,-500.0,8.856e-05,2]
[353192850,1739640633415,-922.44,8.856e-05,2]
[353192851,1739640633425,-500.0,8.856e-05,2]
[353192852,1739640633434,-500.0,8.856e-05,2]
[353192853,1739640633443,-500.0,8.856e-05,2]
[353192854,1739640633453,-556.59,8.856e-05,2]
[353192855,1739640633463,-576.57,8.856e-05,2]
[353192856,1739640633474,-347.98892053,8.856e-05,2]
[353192857,1739640633483,-58.3840371,8.856e-05,2]
[353192901,1739640638823,-464.96799901,8.855e-05,2]
[353193429,1739640643959,-35.03200099,8.855e-05,2]
[353193431,1739640643969,-500.0,8.855e-05,2]
[353193433,1739640643981,-500.0,8.855e-05,2]
[353193435,1739640643990,-441.6159629,8.856e-05,2]
[353193437,1739640644000,-500.0,8.856e-05,2]
[353193439,1739640644010,-500.0,8.856e-05,2]
[353193441,1739640644020,-500.0,8.856e-05,2]
[353193444,1739640644031,-500.0,8.856e-05,2]
[353193459,1739640644167,-3804.15,8.856e-05,2]
[353193461,1739640644179,-1010.76,8.856e-05,2]
[353193463,1739640644189,-500.0,8.856e-05,2]
[353193465,1739640644199,-500.0,8.856e-05,2]
[353193467,1739640644208,-685.82,8.856e-05,2]
[353193469,1739640644219,-2135.32,8.856e-05,2]
[353193471,1739640644229,-500.0,8.856e-05,2]
[353193474,1739640644240,-500.0,8.856e-05,2]
[353193476,1739640644249,-1766.15,8.856e-05,2]
[353193478,1739640644260,-500.0,8.856e-05,2]
[353193480,1739640644269,-500.0,8.856e-05,2]
[353193482,1739640644279,-500.0,8.856e-05,2]
[353193484,1739640644289,-500.0,8.856e-05,2]
[353193486,1739640644299,-500.0,8.856e-05,2]
[353193488,1739640644309,-500.0,8.856e-05,2]
[353193490,1739640644319,-500.0,8.856e-05,2]
[353193492,1739640644329,-500.0,8.856e-05,2]
[353193494,1739640644338,-500.0,8.856e-05,2]
[353193496,1739640644348,-500.0,8.856e-05,2]
[353193498,1739640644357,-667.87,8.856e-05,2]
[353193500,1739640644367,-748.68,8.856e-05,2]
[353193502,1739640644376,-1823.98,8.856e-05,2]
[353193504,1739640644386,-500.0,8.856e-05,2]
[353193506,1739640644397,-2592.54,8.856e-05,2]
[353193508,1739640644407,-2830.13,8.856e-05,2]
[353193510,1739640644416,-500.0,8.856e-05,2]
[353193512,1739640644425,-500.0,8.856e-05,2]
[353193514,1739640644435,-582.1,8.856e-05,2]
[353193516,1739640644444,-500.0,8.856e-05,2]
[353193518,1739640644454,-688.17,8.856e-05,2]
[353193520,1739640644463,-500.0,8.856e-05,2]
[353193522,1739640644472,-500.0,8.856e-05,2]
[353193524,1739640644485,-500.0,8.856e-05,2]
[353193526,1739640644494,-500.0,8.856e-05,2]
[353193528,1739640644504,-2714.09,8.856e-05,2]
[353193530,1739640644513,-544.29,8.856e-05,2]
[353193532,1739640644522,-500.0,8.856e-05,2]
[353193534,1739640644532,-7624.48,8.856e-05,2]
[353193536,1739640644542,-1625.11,8.856e-05,2]
[353193538,1739640644551,-500.0,8.856e-05,2]
[353193540,1739640644560,-806.53,8.856e-05,2]
[353193542,1739640644569,-500.0,8.856e-05,2]
[353193544,1739640644579,-800.59,8.856e-05,2]
[353193546,1739640644589,-501.20340496,8.856e-05,2]
[353193548,1739640644600,-500.0,8.856e-05,2]
[353193550,1739640644611,-1707.49,8.856e-05,2]
[353193552,1739640644621,-500.0,8.856e-05,2]
[353193554,1739640644630,-1322.88,8.856e-05,2]
[353193556,1739640644640,-1015.05,8.856e-05,2]
[353193558,1739640644649,-500.0,8.856e-05,2]
[353193560,1739640644660,-500.0,8.856e-05,2]
[353193562,1739640644669,-535.49,8.856e-05,2]
[353193564,1739640644679,-1050.07,8.856e-05,2]
[353193566,1739640644688,-500.0,8.856e-05,2]
[353193568,1739640644697,-500.0,8.856e-05,2]
[353193570,1739640644707,-3113.13,8.856e-05,2]
[353193572,1739640644716,-500.0,8.856e-05,2]
[353193574,1739640644726,-328.71024997,8.856e-05,2]
[353193576,1739640644736,-500.0,8.856e-05,2]
[353193578,1739640644745,-500.0,8.856e-05,2]
[353193580,1739640644756,-515.62228993,8.856e-05,2]
[353193582,1739640644765,-500.0,8.856e-05,2]
[353193584,1739640644775,-1918.64,8.856e-05,2]
[353193586,1739640644785,-500.0,8.856e-05,2]
[353193588,1739640644795,-850.8,8.856e-05,2]
[353193590,1739640644805,-1402.07,8.856e-05,2]
[353193592,1739640644814,-500.0,8.856e-05,2]
[353193594,1739640644824,-1480.24,8.856e-05,2]
[353193596,1739640644834,-500.0,8.856e-05,2]
[353193598,1739640644844,-4902.1,8.856e-05,2]
[353193600,1739640644853,-500.0,8.856e-05,2]
[353193602,1739640644863,-238.34930387,8.856e-05,2]
[353193604,1739640644872,-2779.29,8.856e-05,2]
[353193606,1739640644882,-727.55,8.856e-05,2]
[353193608,1739640644892,-500.0,8.856e-05,2]
[353193610,1739640644902,-500.0,8.856e-05,2]
[353193612,1739640644911,-529.27355035,8.856e-05,2]
[353193614,1739640644921,-500.0,8.856e-05,2]
[353193616,1739640644930,-500.68596423,8.856e-05,2]
[353193618,1739640644939,-500.0,8.856e-05,2]
[353193620,1739640644949,-500.0,8.856e-05,2]
[353193622,1739640644958,-648.8,8.856e-05,2]
[353193624,1739640644967,-1328.96,8.856e-05,2]
[353193626,1739640644978,-500.0,8.856e-05,2]
[353193628,1739640644987,-500.0,8.856e-05,2]
[353193630,1739640644997,-500.0,8.856e-05,2]
[353193632,1739640645007,-500.0,8.856e-05,2]
[353193634,1739640645017,-644.98,8.856e-05,2]
[353193636,1739640645026,-500.0,8.856e-05,2]
[353193638,1739640645036,-500.0,8.856e-05,2]
[353193640,1739640645046,-3783.17,8.856e-05,2]
[353193642,1739640645055,-703.45,8.856e-05,2]
[353193644,1739640645065,-500.0,8.856e-05,2]
[353193646,1739640645075,-21624.62,8.856e-05,2]
[353193648,1739640645085,-1381.59,8.856e-05,2]
[353193650,1739640645097,-500.0,8.857e-05,2]
[353193652,1739640645106,-500.0,8.857e-05,2]
[353193654,1739640645116,-257.55384059,8.857e-05,2]
[353193656,1739640645125,-500.0,8.857e-05,2]
[353193658,1739640645135,-500.0,8.857e-05,2]
[353193660,1739640645148,-500.0,8.857e-05,2]
[353193662,1739640645159,-500.0,8.857e-05,2]
[353193664,1739640645169,-500.0,8.857e-05,2]
[353193666,1739640645178,-500.0,8.857e-05,2]
[353193669,1739640645189,-500.0,8.857e-05,2]
[353193671,1739640645199,-500.0,8.857e-05,2]
[353193673,1739640645207,-500.0,8.857e-05,2]
[353193675,1739640645216,-500.0,8.857e-05,2]
[353193677,1739640645226,-500.0,8.857e-05,2]
[353193678,1739640645236,-500.0,8.857e-05,2]
[353193681,1739640645246,-500.0,8.857e-05,2]
[353193683,1739640645256,-500.0,8.857e-05,2]
[353193685,1739640645265,-502.59570178,8.857e-05,2]
[353193687,1739640645275,-600.19,8.857e-05,2]
[353193689,1739640645285,-500.0,8.857e-05,2]
[353193691,1739640645294,-500.0,8.857e-05,2]
[353193693,1739640645304,-500.0,8.857e-05,2]
[353193695,1739640645313,-500.0,8.857e-05,2]
[353193697,1739640645323,-500.0,8.857e-05,2]
[353193699,1739640645333,-504.16024629,8.857e-05,2]
[353193701,1739640645343,-500.0,8.857e-05,2]
[353193703,1739640645353,-500.0,8.857e-05,2]
[353193705,1739640645363,-500.0,8.857e-05,2]
[353193707,1739640645373,-639.6,8.857e-05,2]
[353193709,1739640645384,-500.0,8.857e-05,2]
[353193711,1739640645394,-500.0,8.857e-05,2]
[353193713,1739640645403,-500.0,8.857e-05,2]
[353193715,1739640645412,-264.90135804,8.857e-05,2]
[353193717,1739640645422,-500.0,8.857e-05,2]
[353193719,1739640645432,-500.0,8.857e-05,2]
[353193721,1739640645441,-500.0,8.857e-05,2]
[353193723,1739640645451,-500.0,8.857e-05,2]
[353193725,1739640645461,-500.0,8.857e-05,2]
[353193727,1739640645470,-500.0,8.857e-05,2]
[353193729,1739640645480,-500.0,8.857e-05,2]
[353193731,1739640645490,-500.0,8.857e-05,2]
[353193733,1739640645500,-500.0,8.857e-05,2]
[353193735,1739640645510,-500.0,8.857e-05,2]
[353193737,1739640645520,-500.0,8.857e-05,2]
[353193739,1739640645530,-502.65970268,8.857e-05,2]
[353193741,1739640645540,-500.0,8.857e-05,2]
[353193743,1739640645549,-500.0,8.857e-05,2]
[353193745,1739640645560,-500.0,8.857e-05,2]
[353193747,1739640645569,-500.0,8.857e-05,2]
[353193749,1739640645579,-500.0,8.857e-05,2]
[353193751,1739640645589,-500.0,8.857e-05,2]
[353193753,1739640645599,-502.55514177,8.857e-05,2]
[353193755,1739640645609,-500.0,8.857e-05,2]
[353193757,1739640645619,-500.0,8.857e-05,2]
[353193760,1739640645629,-500.0,8.857e-05,2]
[353193762,1739640645640,-500.0,8.857e-05,2]
[353193764,1739640645649,-399.04593153,8.857e-05,2]
[353193766,1739640645661,-500.0,8.857e-05,2]
[353193768,1739640645671,-500.0,8.857e-05,2]
[353193770,1739640645680,-500.0,8.857e-05,2]
[353193772,1739640645690,-500.0,8.857e-05,2]
[353193774,1739640645700,-500.0,8.857e-05,2]
[353193776,1739640645711,-500.0,8.857e-05,2]
[353193778,1739640645720,-500.0,8.857e-05,2]
[353193780,1739640645731,-500.0,8.857e-05,2]
[353193782,1739640645741,-500.0,8.857e-05,2]
[353193784,1739640645750,-500.0,8.857e-05,2]
[353193786,1739640645761,-500.0,8.857e-05,2]
[353193788,1739640645770,-500.0,8.857e-05,2]
[353193790,1739640645781,-500.0,8.857e-05,2]
[353193792,1739640645791,-500.0,8.857e-05,2]
[353193794,1739640645800,-500.0,8.857e-05,2]
[353193796,1739640645810,-500.0,8.857e-05,2]
[353193798,1739640645819,-500.0,8.857e-05,2]
[353193800,1739640645829,-500.0,8.857e-05,2]
[353193802,1739640645838,-500.0,8.857e-05,2]
[353193804,1739640645848,-500.0,8.857e-05,2]
[353193807,1739640645859,-500.0,8.857e-05,2]
[353193809,1739640645868,-500.0,8.857e-05,2]
[353193810,1739640645878,-500.0,8.857e-05,2]
[353193812,1739640645888,-500.0,8.857e-05,2]
[353193814,1739640645898,-500.0,8.857e-05,2]
[353193816,1739640645907,-637.2404972,8.857e-05,2]
[353193819,1739640645917,-500.0,8.857e-05,2]
[353193821,1739640645926,-500.0,8.857e-05,2]
[353193823,1739640645935,-500.0,8.857e-05,2]
[353193825,1739640645945,-500.0,8.857e-05,2]
[353193827,1739640645954,-501.38484482,8.857e-05,2]
[353193841,1739640646067,-500.0,8.857e-05,2]
[353193842,1739640646078,-500.0,8.857e-05,2]
[353193843,1739640646089,-500.87977643,8.857e-05,2]
[353193844,1739640646099,-500.0,8.857e-05,2]
[353193845,1739640646109,-500.0,8.857e-05,2]
[353193846,1739640646118,-500.0,8.857e-05,2]
[353193847,1739640646128,-500.0,8.857e-05,2]
[353193848,1739640646145,-500.0,8.857e-05,2]
[353193849,1739640646157,-500.0,8.857e-05,2]
[353193850,1739640646166,-500.0,8.857e-05,2]
[353193851,1739640646175,-500.0,8.857e-05,2]
[353193852,1739640646185,-500.0,8.857e-05,2]
[353193853,1739640646195,-1077.35,8.857e-05,2]
[353193854,1739640646205,-500.0,8.857e-05,2]
[353193855,1739640646214,-500.0,8.857e-05,2]
[353193856,1739640646224,-500.0,8.857e-05,2]
[353193857,1739640646235,-502.93777603,8.857e-05,2]
[353193858,1739640646244,-597.63962164,8.857e-05,2]
[353193860,1739640646253,-500.0,8.857e-05,2]
[353193862,1739640646263,-500.0,8.857e-05,2]
[353193864,1739640646273,-500.0,8.857e-05,2]
[353193866,1739640646283,-500.9433833,8.857e-05,2]
[353193868,1739640646293,-500.0,8.857e-05,2]
[353193870,1739640646302,-500.0,8.857e-05,2]
[353193872,1739640646312,-500.0,8.857e-05,2]
[353193874,1739640646321,-500.0,8.857e-05,2]
[353193876,1739640646332,-500.0,8.857e-05,2]
[353193878,1739640646341,-500.0,8.857e-05,2]
[353193880,1739640646351,-500.0,8.857e-05,2]
[353193882,1739640646360,-500.0,8.857e-05,2]
[353193884,1739640646370,-500.0,8.857e-05,2]
[353193886,1739640646379,-500.0,8.857e-05,2]
[353193888,1739640646387,-500.0,8.857e-05,2]
[353193889,1739640646397,-500.0,8.857e-05,2]
[353193891,1739640646406,-500.0,8.857e-05,2]
[353193893,1739640646416,-500.0,8.857e-05,2]
[353193895,1739640646426,-501.31425445,8.857e-05,2]
[353193897,1739640646435,-529.79,8.857e-05,2]
[353193899,1739640646445,-500.0,8.857e-05,2]
[353193901,1739640646454,-813.20115366,8.857e-05,2]
[353196372,1739641831792,-300.0,8.851e-05,2]
[353196373,1739641831802,-615.56,8.852e-05,2]
[353196374,1739641831811,-2464.96,8.852e-05,2]
[353196375,1739641831821,-774.17,8.852e-05,2]
[353196376,1739641831831,-500.0,8.852e-05,2]
[353196377,1739641831840,-860.54943522,8.852e-05,2]
[353196440,1739641842868,-716.98056478,8.852e-05,2]
[353196442,1739641842878,-500.0,8.852e-05,2]
[353196444,1739641842887,-500.0,8.852e-05,2]
[353196446,1739641842897,-500.0,8.852e-05,2]
[353196448,1739641842906,-500.0,8.852e-05,2]
[353196449,1739641842915,-500.0,8.852e-05,2]
[353196451,1739641842924,-500.0,8.852e-05,2]
[353196453,1739641842934,-2902.69,8.852e-05,2]
[353196455,1739641842943,-500.0,8.852e-05,2]
[353196457,1739641842953,-7600.64,8.852e-05,2]
[353196459,1739641842962,-578.68,8.852e-05,2]
[353196461,1739641842971,-500.0,8.852e-05,2]
[353196463,1739641842980,-3120.58,8.852e-05,2]
[353196465,1739641842989,-500.0,8.852e-05,2]
[353196467,1739641842998,-500.0,8.853e-05,2]
[353196470,1739641843007,-500.0,8.853e-05,2]
[353196473,1739641843016,-500.0,8.853e-05,2]
[353196476,1739641843026,-500.0,8.853e-05,2]
[353196478,1739641843035,-500.0,8.853e-05,2]
[353196480,1739641843044,-500.0,8.853e-05,2]
[353196482,1739641843053,-618.32541929,8.853e-05,2]
[353196484,1739641843063,-500.0,8.853e-05,2]
[353196498,1739641843194,-500.0,8.853e-05,2]
[353196500,1739641843205,-500.0,8.853e-05,2]
[353196502,1739641843215,-500.0,8.853e-05,2]
[353196504,1739641843224,-500.0,8.853e-05,2]
[353196506,1739641843234,-500.0,8.853e-05,2]
[353196508,1739641843243,-500.0,8.853e-05,2]
[353196510,1739641843253,-384.910382,8.853e-05,2]
[353196512,1739641843262,-500.0,8.853e-05,2]
[353196514,1739641843271,-500.0,8.853e-05,2]
[353196516,1739641843280,-500.0,8.853e-05,2]
[353196518,1739641843290,-855.79,8.853e-05,2]
[353196520,1739641843299,-2714.21,8.853e-05,2]
[353196522,1739641843309,-500.0,8.853e-05,2]
[353196524,1739641843319,-500.0,8.853e-05,2]
[353196525,1739641843328,-500.0,8.853e-05,2]
[353196527,1739641843338,-1352.55,8.853e-05,2]
[353196529,1739641843347,-1028.81,8.853e-05,2]
[353196531,1739641843357,-500.0,8.853e-05,2]
[353196533,1739641843367,-500.0,8.853e-05,2]
[353196535,1739641843376,-1320.33,8.853e-05,2]
[353196537,1739641843386,-500.0,8.853e-05,2]
[353196539,1739641843395,-500.0,8.853e-05,2]
[353196541,1739641843406,-500.0,8.853e-05,2]
[353196543,1739641843415,-4820.33,8.853e-05,2]
[353196545,1739641843425,-538.36,8.853e-05,2]
[353196547,1739641843434,-1319.15,8.853e-05,2]
[353196549,1739641843443,-500.0,8.853e-05,2]
[353196551,1739641843453,-159.1007818,8.853e-05,2]
[353196553,1739641843462,-500.0,8.853e-05,2]
[353196554,1739641843471,-500.0,8.853e-05,2]
[353196556,1739641843481,-500.0,8.853e-05,2]
[353196558,1739641843491,-1896.83,8.853e-05,2]
[353196560,1739641843501,-500.0,8.853e-05,2]
[353196562,1739641843510,-500.0,8.853e-05,2]
[353196564,1739641843521,-1449.84,8.853e-05,2]
[353196566,1739641843533,-500.0,8.853e-05,2]
[353196568,1739641843543,-2804.74,8.853e-05,2]
[353196570,1739641843554,-1372.61,8.853e-05,2]
[353196572,1739641843566,-5575.11,8.853e-05,2]
[353196574,1739641843575,-508.96302519,8.853e-05,2]
[353196576,1739641843585,-500.0,8.853e-05,2]
[353196578,1739641843594,-602.3,8.853e-05,2]
[353196580,1739641843604,-500.0,8.853e-05,2]